[Event "*** Titled Tuesday Blitz"]
[Site "Chess.com"]
[Date "2021.03.30"]
[Round "3"]
[White "mac0504"]
[Black "KeithArkell"]
[Result "1-0"]
[WhiteElo "2444"]
[BlackElo "2609"]
[TimeControl "180+1"]
[EndTime "10:27:55 PDT"]
[Termination "mac0504 won by resignation"]

1. e4 {[%clk 0:03:00.9]} 1... c6 {[%clk 0:02:59.9]} 2. d4 {[%clk 0:03:00.8]}
2... d5 {[%clk 0:03:00.1]} 3. e5 {[%clk 0:03:01.7]} 3... c5 {[%clk 0:03:00.5]}
4. dxc5 {[%clk 0:03:01.8]} 4... Nc6 {[%clk 0:03:00.6]} 5. Nf3 {[%clk 0:03:01.8]}
5... Bg4 {[%clk 0:03:00.3]} 6. c3 {[%clk 0:03:02.1]} 6... e6 {[%clk 0:02:59.8]}
7. Be3 {[%clk 0:02:51.8]} 7... Bxf3 {[%clk 0:02:58]} 8. Qxf3 {[%clk 0:02:50.8]}
8... Nxe5 {[%clk 0:02:58]} 9. Bb5+ {[%clk 0:02:48.9]} 9... Nc6 {[%clk
0:02:58.1]} 10. O-O {[%clk 0:02:47.2]} 10... Nf6 {[%clk 0:02:58]} 11. c4 {[%clk
0:02:46.9]} 11... Be7 {[%clk 0:02:57.9]} 12. Nc3 {[%clk 0:02:31.6]} 12... a6
{[%clk 0:02:51.7]} 13. cxd5 {[%clk 0:02:23.1]} 13... Nxd5 {[%clk 0:02:49.2]} 14.
Nxd5 {[%clk 0:02:17.4]} 14... Qxd5 {[%clk 0:02:49]} 15. Qxd5 {[%clk 0:02:00.5]}
15... exd5 {[%clk 0:02:49.9]} 16. Ba4 {[%clk 0:02:01]} 16... Bf6 {[%clk
0:02:47.7]} 17. Rad1 {[%clk 0:01:48.4]} 17... Rd8 {[%clk 0:02:37.1]} 18. Rd2
{[%clk 0:01:12.4]} 18... O-O {[%clk 0:02:35.1]} 19. Rfd1 {[%clk 0:01:12.2]}
19... d4 {[%clk 0:02:35.4]} 20. Bxc6 {[%clk 0:01:10.5]} 20... dxe3 {[%clk
0:02:32.7]} 21. Rxd8 {[%clk 0:01:10.3]} 21... exf2+ {[%clk 0:02:32.2]} 22. Kxf2
{[%clk 0:01:10]} 22... Rxd8 {[%clk 0:02:19.4]} 23. Rxd8+ {[%clk 0:01:08]} 23...
Bxd8 {[%clk 0:02:20.3]} 24. Bxb7 {[%clk 0:01:08.3]} 24... a5 {[%clk 0:02:19.6]}
25. Ke3 {[%clk 0:00:54.1]} 25... Kf8 {[%clk 0:02:10.2]} 26. Kd3 {[%clk
0:00:48.4]} 26... Bf6 {[%clk 0:02:07.2]} 27. b3 {[%clk 0:00:46.3]} 27... Be5
{[%clk 0:02:04.7]} 28. h3 {[%clk 0:00:45.2]} 28... Ke7 {[%clk 0:02:00.4]} 29.
Kc4 {[%clk 0:00:45.4]} 29... Kd7 {[%clk 0:01:57.3]} 30. Kb5 {[%clk 0:00:45.3]}
30... Bc7 {[%clk 0:01:48.9]} 31. Bd5 {[%clk 0:00:30.6]} 31... f5 {[%clk
0:01:48.3]} 32. a3 {[%clk 0:00:23.5]} 32... g5 {[%clk 0:01:44.5]} 33. b4 {[%clk
0:00:23.8]} 33... axb4 {[%clk 0:01:42.6]} 34. axb4 {[%clk 0:00:24.7]} 34... h5
{[%clk 0:01:42.7]} 35. Bf7 {[%clk 0:00:19.4]} 35... h4 {[%clk 0:01:36.8]} 36.
Bh5 {[%clk 0:00:18.3]} 36... Bd8 {[%clk 0:01:28.1]} 37. Bf3 {[%clk 0:00:16.5]}
37... Kc7 {[%clk 0:01:27.9]} 38. Kc4 {[%clk 0:00:13.4]} 38... g4 {[%clk
0:01:10.3]} 39. hxg4 {[%clk 0:00:13.2]} 39... h3 {[%clk 0:01:10.7]} 40. gxh3
{[%clk 0:00:11.8]} 40... fxg4 {[%clk 0:01:09.1]} 41. Bxg4 {[%clk 0:00:08.2]}
41... Kb7 {[%clk 0:01:05.1]} 42. Bf3+ {[%clk 0:00:08.3]} 42... Ka6 {[%clk
0:01:04.7]} 43. b5+ {[%clk 0:00:07.6]} 43... Ka5 {[%clk 0:01:04.6]} 44. b6
{[%clk 0:00:08.1]} 44... Bxb6 {[%clk 0:01:03.2]} 45. cxb6 {[%clk 0:00:08.4]}
45... Kxb6 {[%clk 0:01:03.4]} 46. Kd5 {[%clk 0:00:08.5]} 46... Kc7 {[%clk
0:01:03.7]} 47. Ke6 {[%clk 0:00:08.9]} 47... Kd8 {[%clk 0:01:04.3]} 48. Kf7
{[%clk 0:00:09.4]} 48... Kd7 {[%clk 0:01:04.8]} 49. h4 {[%clk 0:00:10.3]} 1-0

[Event "*** Titled Tuesday Blitz"]
[Site "Chess.com"]
[Date "2021.03.30"]
[Round "3"]
[White "lacafi"]
[Black "PlotnikovPavel"]
[Result "0-1"]
[WhiteElo "2209"]
[BlackElo "2501"]
[TimeControl "180+1"]
[EndTime "10:27:56 PDT"]
[Termination "PlotnikovPavel won on time"]

1. d4 {[%clk 0:03:00.9]} 1... e6 {[%clk 0:03:00]} 2. Nf3 {[%clk 0:03:00.2]} 2...
f5 {[%clk 0:02:59.3]} 3. g3 {[%clk 0:02:59.8]} 3... Nf6 {[%clk 0:02:59.3]} 4.
Bg2 {[%clk 0:03:00.4]} 4... d5 {[%clk 0:02:59.1]} 5. O-O {[%clk 0:03:00.6]} 5...
c6 {[%clk 0:02:58.9]} 6. c4 {[%clk 0:03:00.1]} 6... Bd6 {[%clk 0:02:57.6]} 7.
Nc3 {[%clk 0:02:59.6]} 7... O-O {[%clk 0:02:57.6]} 8. b3 {[%clk 0:02:52.9]} 8...
Qe7 {[%clk 0:02:57.2]} 9. Bb2 {[%clk 0:02:52.2]} 9... Bd7 {[%clk 0:02:53.7]} 10.
Ne5 {[%clk 0:02:45.8]} 10... Be8 {[%clk 0:02:52.6]} 11. Qc2 {[%clk 0:02:37.5]}
11... Ne4 {[%clk 0:02:44.6]} 12. f3 {[%clk 0:02:31.4]} 12... Bxe5 {[%clk
0:02:44]} 13. dxe5 {[%clk 0:02:26.6]} 13... Qc5+ {[%clk 0:02:43.6]} 14. e3
{[%clk 0:02:16.1]} 14... Qxe3+ {[%clk 0:02:41]} 15. Kh1 {[%clk 0:02:16.2]} 15...
Nxc3 {[%clk 0:02:32.5]} 16. Bxc3 {[%clk 0:02:08.5]} 16... f4 {[%clk 0:02:31.5]}
17. Bb4 {[%clk 0:01:22.1]} 17... Bg6 {[%clk 0:02:28.9]} 18. Qb2 {[%clk
0:01:15.2]} 18... fxg3 {[%clk 0:02:19.7]} 19. Bxf8 {[%clk 0:01:05.9]} 19... Qh6
{[%clk 0:02:18.5]} 20. h3 {[%clk 0:01:05.3]} 20... Kxf8 {[%clk 0:02:17.5]} 21.
cxd5 {[%clk 0:01:03.5]} 21... cxd5 {[%clk 0:02:16.3]} 22. Qa3+ {[%clk
0:00:55.6]} 22... Kf7 {[%clk 0:02:05.6]} 23. Qd6 {[%clk 0:00:51.7]} 23... Bf5
{[%clk 0:01:48.5]} 24. Qc7+ {[%clk 0:00:28.5]} 24... Kg6 {[%clk 0:01:44.8]} 25.
Kg1 {[%clk 0:00:22.8]} 25... Bxh3 {[%clk 0:01:44.4]} 26. Bxh3 {[%clk 0:00:18.1]}
26... Qxh3 {[%clk 0:01:43.2]} 27. Qc2+ {[%clk 0:00:18.7]} 27... Qf5 {[%clk
0:01:37.6]} 28. Qxf5+ {[%clk 0:00:18.5]} 28... Kxf5 {[%clk 0:01:37.4]} 29. f4
{[%clk 0:00:14]} 29... Nc6 {[%clk 0:01:32.7]} 30. Kg2 {[%clk 0:00:14.3]} 30...
Rc8 {[%clk 0:01:25.5]} 31. Kxg3 {[%clk 0:00:13]} 31... d4 {[%clk 0:01:16.6]} 32.
Rac1 {[%clk 0:00:09.1]} 32... Rd8 {[%clk 0:01:11.5]} 33. Rfd1 {[%clk 0:00:08.5]}
33... g5 {[%clk 0:01:08.2]} 34. fxg5 {[%clk 0:00:07.6]} 34... Kxg5 {[%clk
0:01:06]} 35. Rc4 {[%clk 0:00:05.9]} 35... Kf5 {[%clk 0:01:05.5]} 36. Re1 {[%clk
0:00:04.3]} 36... Rd5 {[%clk 0:01:00.8]} 37. Rc2 {[%clk 0:00:02.6]} 37... d3
{[%clk 0:00:56.4]} 38. Rf2+ {[%clk 0:00:02.5]} 38... Kg5 {[%clk 0:00:56.1]} 39.
Kh2 {[%clk 0:00:01.8]} 39... Nxe5 {[%clk 0:00:51.1]} 40. Rg1+ {[%clk 0:00:01.7]}
40... Ng4+ {[%clk 0:00:51.3]} 41. Kh3 {[%clk 0:00:01.1]} 41... h5 {[%clk
0:00:51.3]} 0-1

[Event "*** Titled Tuesday Blitz"]
[Site "Chess.com"]
[Date "2021.03.30"]
[Round "3"]
[White "AniJak"]
[Black "korbul"]
[Result "0-1"]
[WhiteElo "2318"]
[BlackElo "2573"]
[TimeControl "180+1"]
[EndTime "10:27:56 PDT"]
[Termination "korbul won by checkmate"]

1. e4 {[%clk 0:03:00.9]} 1... c5 {[%clk 0:02:59.4]} 2. Nf3 {[%clk 0:03:00.3]}
2... e6 {[%clk 0:02:59.3]} 3. d4 {[%clk 0:03:00]} 3... cxd4 {[%clk 0:02:59.4]}
4. Nxd4 {[%clk 0:03:00.9]} 4... Nf6 {[%clk 0:02:59.1]} 5. Nc3 {[%clk 0:03:00.8]}
5... d6 {[%clk 0:02:59.2]} 6. Bd3 {[%clk 0:02:57.6]} 6... a6 {[%clk 0:02:58.3]}
7. O-O {[%clk 0:02:57.4]} 7... b5 {[%clk 0:02:58]} 8. a3 {[%clk 0:02:54]} 8...
Bb7 {[%clk 0:02:57.3]} 9. Kh1 {[%clk 0:02:50.8]} 9... Nbd7 {[%clk 0:02:56.7]}
10. f4 {[%clk 0:02:50.6]} 10... Qc7 {[%clk 0:02:53.9]} 11. Bd2 {[%clk
0:02:47.6]} 11... g6 {[%clk 0:02:52.3]} 12. Qe2 {[%clk 0:02:47.5]} 12... Bg7
{[%clk 0:02:44.3]} 13. f5 {[%clk 0:02:43.3]} 13... gxf5 {[%clk 0:02:43.5]} 14.
exf5 {[%clk 0:02:43]} 14... e5 {[%clk 0:02:43.5]} 15. Ne4 {[%clk 0:02:21.5]}
15... O-O {[%clk 0:02:37.6]} 16. Nb3 {[%clk 0:02:19.7]} 16... d5 {[%clk
0:02:33.7]} 17. Nxf6+ {[%clk 0:02:16.4]} 17... Nxf6 {[%clk 0:02:33.5]} 18. Bb4
{[%clk 0:02:15.6]} 18... e4 {[%clk 0:02:29.7]} 19. Bxf8 {[%clk 0:01:58.8]} 19...
Rxf8 {[%clk 0:02:28]} 20. c3 {[%clk 0:01:43]} 20... exd3 {[%clk 0:02:26.7]} 21.
Qxd3 {[%clk 0:01:43.9]} 21... Kh8 {[%clk 0:02:18.3]} 22. Nd4 {[%clk 0:01:43.4]}
22... Ne4 {[%clk 0:02:09.6]} 23. Qh3 {[%clk 0:01:36.6]} 23... Bc8 {[%clk
0:01:49.6]} 24. Rad1 {[%clk 0:01:26.6]} 24... Qb6 {[%clk 0:01:40.6]} 25. Qh4
{[%clk 0:01:22.4]} 25... Qf6 {[%clk 0:01:18.3]} 26. Qxf6 {[%clk 0:01:03.6]}
26... Bxf6 {[%clk 0:01:17.8]} 27. Nc6 {[%clk 0:01:04]} 27... Bb7 {[%clk
0:01:15.2]} 28. Nb4 {[%clk 0:01:01.7]} 28... Rd8 {[%clk 0:01:12.7]} 29. Nc2
{[%clk 0:00:56.5]} 29... Kg7 {[%clk 0:01:09.7]} 30. Kg1 {[%clk 0:00:49.7]} 30...
Be5 {[%clk 0:01:07.7]} 31. Rfe1 {[%clk 0:00:46.7]} 31... Rd6 {[%clk 0:01:01.7]}
32. f6+ {[%clk 0:00:35.3]} 32... Rxf6 {[%clk 0:00:57.5]} 33. Ne3 {[%clk
0:00:34.1]} 33... Bb8 {[%clk 0:00:28.2]} 34. Nxd5 {[%clk 0:00:32.8]} 34... Ba7+
{[%clk 0:00:28.3]} 35. Ne3 {[%clk 0:00:29.5]} 35... Nf2 {[%clk 0:00:28.3]} 36.
Rd2 {[%clk 0:00:26.1]} 36... Ng4 {[%clk 0:00:27.9]} 37. Rd7 {[%clk 0:00:22.2]}
37... Bxe3+ {[%clk 0:00:27.2]} 38. Rxe3 {[%clk 0:00:22.3]} 38... Nxe3 {[%clk
0:00:27.3]} 39. Rxb7 {[%clk 0:00:23.2]} 39... Rf1# {[%clk 0:00:26.8]} 0-1

[Event "*** Titled Tuesday Blitz"]
[Site "Chess.com"]
[Date "2021.03.30"]
[Round "3"]
[White "tusplingher"]
[Black "eduardoperalta"]
[Result "0-1"]
[WhiteElo "2277"]
[BlackElo "2508"]
[TimeControl "180+1"]
[EndTime "10:27:56 PDT"]
[Termination "eduardoperalta won by resignation"]

1. e4 {[%clk 0:03:00.9]} 1... c5 {[%clk 0:02:59.6]} 2. d4 {[%clk 0:03:00.8]}
2... cxd4 {[%clk 0:02:59]} 3. c3 {[%clk 0:03:01]} 3... d3 {[%clk 0:02:59]} 4.
Bxd3 {[%clk 0:03:00.6]} 4... Nc6 {[%clk 0:02:59.9]} 5. Nf3 {[%clk 0:03:00.3]}
5... g6 {[%clk 0:03:00.4]} 6. O-O {[%clk 0:02:59.9]} 6... Bg7 {[%clk 0:03:01]}
7. c4 {[%clk 0:03:00.3]} 7... d6 {[%clk 0:03:00]} 8. h3 {[%clk 0:02:59.9]} 8...
Nf6 {[%clk 0:03:00.9]} 9. Nc3 {[%clk 0:02:59.3]} 9... O-O {[%clk 0:03:01.1]} 10.
Be3 {[%clk 0:02:59.1]} 10... b6 {[%clk 0:02:58.7]} 11. Rc1 {[%clk 0:02:57.7]}
11... Bb7 {[%clk 0:02:58.6]} 12. Bb1 {[%clk 0:02:53.1]} 12... Rc8 {[%clk
0:02:58.1]} 13. b3 {[%clk 0:02:49.5]} 13... Nd7 {[%clk 0:02:58]} 14. Nd5 {[%clk
0:02:47.6]} 14... Nc5 {[%clk 0:02:55.8]} 15. Nd4 {[%clk 0:02:42.4]} 15... Nxd4
{[%clk 0:02:53.6]} 16. Bxd4 {[%clk 0:02:42.1]} 16... e5 {[%clk 0:02:53.3]} 17.
Be3 {[%clk 0:02:38.7]} 17... Ne6 {[%clk 0:02:53.4]} 18. Qd2 {[%clk 0:02:26.7]}
18... f5 {[%clk 0:02:53.2]} 19. f3 {[%clk 0:02:21.7]} 19... Nd4 {[%clk
0:02:44.9]} 20. Bxd4 {[%clk 0:02:21.1]} 20... exd4 {[%clk 0:02:45.2]} 21. exf5
{[%clk 0:02:21.1]} 21... Bxd5 {[%clk 0:02:36.9]} 22. cxd5 {[%clk 0:02:19.2]}
22... gxf5 {[%clk 0:02:28.6]} 23. Rxc8 {[%clk 0:02:14.5]} 23... Qxc8 {[%clk
0:02:28.3]} 24. Rc1 {[%clk 0:02:07.8]} 24... Qd8 {[%clk 0:02:26.3]} 25. Bd3
{[%clk 0:01:49.1]} 25... Qh4 {[%clk 0:02:25.6]} 26. Qf2 {[%clk 0:01:45.7]} 26...
Qf4 {[%clk 0:02:24]} 27. Rc7 {[%clk 0:01:42.5]} 27... Kh8 {[%clk 0:02:16.2]} 28.
g3 {[%clk 0:01:36.5]} 28... Qh6 {[%clk 0:02:13.8]} 29. Kg2 {[%clk 0:01:32.6]}
29... f4 {[%clk 0:02:12.9]} 30. g4 {[%clk 0:01:32.7]} 30... Re8 {[%clk
0:02:04.8]} 31. Be4 {[%clk 0:01:18.5]} 31... Qf6 {[%clk 0:01:37.6]} 32. Qd2
{[%clk 0:00:47.7]} 32... d3 {[%clk 0:01:23]} 33. Qxd3 {[%clk 0:00:44.1]} 33...
Qh4 {[%clk 0:01:22]} 34. Qf1 {[%clk 0:00:35.7]} 34... Qg3+ {[%clk 0:01:19.8]}
35. Kh1 {[%clk 0:00:35.7]} 35... Bd4 {[%clk 0:01:14.8]} 36. Qg2 {[%clk
0:00:25.3]} 36... Qe1+ {[%clk 0:01:14.2]} 37. Kh2 {[%clk 0:00:25.3]} 37... Rxe4
{[%clk 0:00:55]} 38. fxe4 {[%clk 0:00:17.3]} 38... f3 {[%clk 0:00:53.6]} 39.
Rc8+ {[%clk 0:00:17.3]} 39... Kg7 {[%clk 0:00:53]} 40. Rc7+ {[%clk 0:00:17.3]}
40... Kg6 {[%clk 0:00:52.2]} 41. Qg3 {[%clk 0:00:14.4]} 41... Be5 {[%clk
0:00:47.3]} 0-1

[Event "*** Titled Tuesday Blitz"]
[Site "Chess.com"]
[Date "2021.03.30"]
[Round "3"]
[White "woodhy"]
[Black "Supernotar"]
[Result "0-1"]
[WhiteElo "2453"]
[BlackElo "2707"]
[TimeControl "180+1"]
[EndTime "10:27:58 PDT"]
[Termination "Supernotar won by resignation"]

1. e4 {[%clk 0:03:00.9]} 1... c6 {[%clk 0:03:00.3]} 2. d4 {[%clk 0:02:58.6]}
2... d5 {[%clk 0:03:01.2]} 3. Nc3 {[%clk 0:02:58]} 3... dxe4 {[%clk 0:03:01.1]}
4. Nxe4 {[%clk 0:02:57.7]} 4... Bf5 {[%clk 0:03:01.8]} 5. Ng3 {[%clk 0:02:57.7]}
5... Bg6 {[%clk 0:03:02.4]} 6. Nf3 {[%clk 0:02:58.6]} 6... Nd7 {[%clk
0:03:02.3]} 7. h4 {[%clk 0:02:58.3]} 7... h6 {[%clk 0:03:02.6]} 8. Bd3 {[%clk
0:02:55.5]} 8... Bxd3 {[%clk 0:03:02.4]} 9. Qxd3 {[%clk 0:02:56.4]} 9... e6
{[%clk 0:03:03.3]} 10. Bf4 {[%clk 0:02:55.3]} 10... Ngf6 {[%clk 0:03:04.2]} 11.
O-O-O {[%clk 0:02:52.1]} 11... Be7 {[%clk 0:03:05.1]} 12. Kb1 {[%clk 0:02:44.3]}
12... O-O {[%clk 0:03:04.8]} 13. Ne4 {[%clk 0:02:43.9]} 13... Nxe4 {[%clk
0:03:05]} 14. Qxe4 {[%clk 0:02:44.8]} 14... Nf6 {[%clk 0:03:05.7]} 15. Qe2
{[%clk 0:02:44.8]} 15... Qd5 {[%clk 0:03:06.6]} 16. Rhg1 {[%clk 0:02:27.7]}
16... Qe4 {[%clk 0:03:05.4]} 17. Be3 {[%clk 0:02:26.8]} 17... Ng4 {[%clk
0:03:00.6]} 18. Nd2 {[%clk 0:02:18.9]} 18... Qf5 {[%clk 0:03:00.3]} 19. g3
{[%clk 0:02:09]} 19... Rad8 {[%clk 0:02:56.8]} 20. f3 {[%clk 0:02:07.5]} 20...
Nxe3 {[%clk 0:02:55.7]} 21. Qxe3 {[%clk 0:02:08.3]} 21... c5 {[%clk 0:02:51.6]}
22. Ne4 {[%clk 0:02:01.9]} 22... cxd4 {[%clk 0:02:49.4]} 23. Rxd4 {[%clk
0:02:02.8]} 23... Rxd4 {[%clk 0:02:49.2]} 24. Qxd4 {[%clk 0:02:01]} 24... Qxf3
{[%clk 0:02:23.6]} 25. a3 {[%clk 0:01:47.9]} 25... Rd8 {[%clk 0:02:21.4]} 26.
Qc4 {[%clk 0:01:44.7]} 26... b5 {[%clk 0:02:13.5]} 27. Qc6 {[%clk 0:01:36.4]}
27... Rd5 {[%clk 0:02:03.3]} 28. Qe8+ {[%clk 0:01:29.9]} 28... Bf8 {[%clk
0:02:03.4]} 29. Nc3 {[%clk 0:01:25.8]} 29... Rd2 {[%clk 0:01:53.5]} 30. Nxb5
{[%clk 0:01:02.3]} 30... Rxc2 {[%clk 0:01:30.7]} 31. Kxc2 {[%clk 0:00:14.7]}
31... Qf2+ {[%clk 0:01:30.9]} 32. Kb1 {[%clk 0:00:13.3]} 32... Qxg1+ {[%clk
0:01:31.8]} 33. Ka2 {[%clk 0:00:12.8]} 33... Qxg3 {[%clk 0:01:31.1]} 34. Nxa7
{[%clk 0:00:12]} 34... Qxh4 {[%clk 0:01:26.5]} 35. Nc8 {[%clk 0:00:12.9]} 35...
Qc4+ {[%clk 0:01:23.5]} 36. Ka1 {[%clk 0:00:12.6]} 36... Qc1+ {[%clk 0:01:23.2]}
37. Ka2 {[%clk 0:00:12.2]} 37... Qc5 {[%clk 0:01:22.7]} 38. b4 {[%clk
0:00:09.4]} 38... Qc2+ {[%clk 0:01:20.5]} 39. Ka1 {[%clk 0:00:09.3]} 39... Qc1+
{[%clk 0:01:20.8]} 40. Ka2 {[%clk 0:00:09.3]} 40... Qd2+ {[%clk 0:01:18]} 41.
Kb1 {[%clk 0:00:08.5]} 41... Qg5 {[%clk 0:01:16.7]} 42. b5 {[%clk 0:00:07.6]}
42... h5 {[%clk 0:01:12.8]} 43. b6 {[%clk 0:00:07.7]} 43... h4 {[%clk 0:01:11]}
44. Ne7+ {[%clk 0:00:07.3]} 44... Qxe7 {[%clk 0:01:09.8]} 45. Qxe7 {[%clk
0:00:05.7]} 45... Bxe7 {[%clk 0:01:10.7]} 46. a4 {[%clk 0:00:03.8]} 46... h3
{[%clk 0:01:09.9]} 47. a5 {[%clk 0:00:03.3]} 47... h2 {[%clk 0:01:10.2]} 48. a6
{[%clk 0:00:04.2]} 48... h1=Q+ {[%clk 0:01:10.5]} 0-1

[Event "*** Titled Tuesday Blitz"]
[Site "Chess.com"]
[Date "2021.03.30"]
[Round "3"]
[White "A-Fier"]
[Black "InitiatingASC"]
[Result "1-0"]
[WhiteElo "2668"]
[BlackElo "2435"]
[TimeControl "180+1"]
[EndTime "10:27:58 PDT"]
[Termination "A-Fier won by checkmate"]

1. d4 {[%clk 0:03:00.9]} 1... Nf6 {[%clk 0:02:53.7]} 2. c4 {[%clk 0:03:00.9]}
2... g6 {[%clk 0:02:53.8]} 3. Nc3 {[%clk 0:03:00.5]} 3... Bg7 {[%clk 0:02:53.1]}
4. e4 {[%clk 0:02:58.7]} 4... d6 {[%clk 0:02:53.5]} 5. Be2 {[%clk 0:02:56.9]}
5... O-O {[%clk 0:02:53.4]} 6. Bg5 {[%clk 0:02:56.8]} 6... Nc6 {[%clk
0:02:52.4]} 7. d5 {[%clk 0:02:54.9]} 7... Nb8 {[%clk 0:02:47.1]} 8. Qd2 {[%clk
0:02:51.1]} 8... a6 {[%clk 0:02:41.4]} 9. h4 {[%clk 0:02:48.4]} 9... b5 {[%clk
0:02:36.4]} 10. h5 {[%clk 0:02:45.2]} 10... b4 {[%clk 0:02:23.5]} 11. Bxf6
{[%clk 0:02:45.8]} 11... Bxf6 {[%clk 0:02:03.4]} 12. hxg6 {[%clk 0:02:45.7]}
12... fxg6 {[%clk 0:02:03.6]} 13. Nd1 {[%clk 0:02:45.6]} 13... a5 {[%clk
0:01:55.3]} 14. Nf3 {[%clk 0:02:45.6]} 14... Na6 {[%clk 0:01:53.8]} 15. Qh6
{[%clk 0:02:39.8]} 15... Rf7 {[%clk 0:01:52.3]} 16. Ng5 {[%clk 0:02:40.4]} 16...
Bxg5 {[%clk 0:01:52.1]} 17. Qxg5 {[%clk 0:02:41.2]} 17... Nc5 {[%clk 0:01:50.5]}
18. f3 {[%clk 0:02:41.5]} 18... Bd7 {[%clk 0:01:41.6]} 19. Ne3 {[%clk
0:02:40.5]} 19... e5 {[%clk 0:01:38.8]} 20. Qxd8+ {[%clk 0:02:22.6]} 20... Rxd8
{[%clk 0:01:38]} 21. Kd2 {[%clk 0:02:20.9]} 21... a4 {[%clk 0:01:31.1]} 22. Raf1
{[%clk 0:02:17.4]} 22... Ra8 {[%clk 0:01:07.7]} 23. Rh2 {[%clk 0:02:16.4]} 23...
c6 {[%clk 0:00:55.1]} 24. Nc2 {[%clk 0:02:16]} 24... b3 {[%clk 0:00:49.1]} 25.
axb3 {[%clk 0:02:16.2]} 25... Nxb3+ {[%clk 0:00:47.2]} 26. Kc3 {[%clk
0:02:15.7]} 26... c5 {[%clk 0:00:47.5]} 27. Bd3 {[%clk 0:02:10.4]} 27... Be8
{[%clk 0:00:43.9]} 28. Na3 {[%clk 0:02:06.5]} 28... Nd4 {[%clk 0:00:42.3]} 29.
Bc2 {[%clk 0:02:02.3]} 29... Rb7 {[%clk 0:00:41.3]} 30. Rb1 {[%clk 0:02:01.9]}
30... Rab8 {[%clk 0:00:41.6]} 31. Bd1 {[%clk 0:02:01.8]} 31... Rb4 {[%clk
0:00:30.3]} 32. Rh1 {[%clk 0:02:01.5]} 32... Bd7 {[%clk 0:00:30.5]} 33. Rf1
{[%clk 0:02:01.2]} 33... Bc8 {[%clk 0:00:30.9]} 34. Rf2 {[%clk 0:01:59.9]} 34...
Ba6 {[%clk 0:00:30.7]} 35. g3 {[%clk 0:01:49.6]} 35... Rf8 {[%clk 0:00:27.2]}
36. f4 {[%clk 0:01:48.7]} 36... g5 {[%clk 0:00:24.9]} 37. f5 {[%clk 0:01:48.4]}
37... Kg7 {[%clk 0:00:25.1]} 38. Rh2 {[%clk 0:01:45.6]} 38... Rfb8 {[%clk
0:00:20.9]} 39. Bc2 {[%clk 0:01:42.6]} 39... Nxc2 {[%clk 0:00:18.2]} 40. Kxc2
{[%clk 0:01:43.5]} 40... Bxc4 {[%clk 0:00:17.8]} 41. Kc3 {[%clk 0:01:31.8]}
41... Bb3 {[%clk 0:00:12.5]} 42. Rbh1 {[%clk 0:01:31.4]} 42... Rh8 {[%clk
0:00:11]} 43. Rh6 {[%clk 0:01:31.7]} 43... Rxe4 {[%clk 0:00:11.2]} 44. Rxd6
{[%clk 0:01:32.1]} 44... Re3+ {[%clk 0:00:11.9]} 45. Kd2 {[%clk 0:01:32.4]}
45... Rxg3 {[%clk 0:00:12.3]} 46. Nb5 {[%clk 0:01:31.2]} 46... Rg2+ {[%clk
0:00:12]} 47. Ke3 {[%clk 0:01:30.5]} 47... Rxb2 {[%clk 0:00:11.7]} 48. Rd7+
{[%clk 0:01:29.8]} 48... Kf6 {[%clk 0:00:11.4]} 49. Nd6 {[%clk 0:01:28.4]} 49...
g4 {[%clk 0:00:11.1]} 50. Rh6+ {[%clk 0:01:26.5]} 50... Kg5 {[%clk 0:00:11.5]}
51. Nf7+ {[%clk 0:01:24.8]} 51... Kxf5 {[%clk 0:00:11]} 52. Nxh8 {[%clk
0:01:25.2]} 52... a3 {[%clk 0:00:09.7]} 53. Rhxh7 {[%clk 0:01:19.9]} 53... g3
{[%clk 0:00:08.5]} 54. Rdf7+ {[%clk 0:01:19.6]} 54... Kg4 {[%clk 0:00:07.7]} 55.
Ng6 {[%clk 0:01:20]} 55... g2 {[%clk 0:00:07.7]} 56. Nxe5+ {[%clk 0:01:20.2]}
56... Kg3 {[%clk 0:00:08.3]} 57. Rf3# {[%clk 0:01:20.2]} 1-0

[Event "*** Titled Tuesday Blitz"]
[Site "Chess.com"]
[Date "2021.03.30"]
[Round "3"]
[White "GMJustin"]
[Black "dhaessel"]
[Result "1-0"]
[WhiteElo "2303"]
[BlackElo "2009"]
[TimeControl "180+1"]
[EndTime "10:27:58 PDT"]
[Termination "GMJustin won on time"]

1. e4 {[%clk 0:02:57]} 1... e5 {[%clk 0:02:59.4]} 2. a3 {[%clk 0:02:56.6]} 2...
Nf6 {[%clk 0:02:53.3]} 3. Nc3 {[%clk 0:02:56.1]} 3... Nc6 {[%clk 0:02:50]} 4.
Nf3 {[%clk 0:02:54.6]} 4... a5 {[%clk 0:02:41.9]} 5. d4 {[%clk 0:02:25.1]} 5...
exd4 {[%clk 0:02:35.1]} 6. Nxd4 {[%clk 0:02:23.1]} 6... Bc5 {[%clk 0:02:30.6]}
7. Be3 {[%clk 0:02:19]} 7... Nxd4 {[%clk 0:01:31.8]} 8. Bxd4 {[%clk 0:02:17.3]}
8... Bxd4 {[%clk 0:01:25.2]} 9. Qxd4 {[%clk 0:02:18.2]} 9... d6 {[%clk
0:01:25.6]} 10. Bc4 {[%clk 0:02:03.8]} 10... O-O {[%clk 0:01:12.4]} 11. O-O
{[%clk 0:02:02.6]} 11... Be6 {[%clk 0:01:05.5]} 12. Rad1 {[%clk 0:01:56.4]}
12... Qe7 {[%clk 0:00:45.8]} 13. Rfe1 {[%clk 0:01:52.7]} 13... Rad8 {[%clk
0:00:39.5]} 14. Nd5 {[%clk 0:01:39.3]} 14... Bxd5 {[%clk 0:00:34.4]} 15. exd5
{[%clk 0:01:36.2]} 15... Qd7 {[%clk 0:00:34.1]} 16. Qd3 {[%clk 0:01:24.2]} 16...
Qg4 {[%clk 0:00:20.6]} 17. h3 {[%clk 0:01:17.3]} 17... Qg6 {[%clk 0:00:17.1]}
18. Qxg6 {[%clk 0:01:04.8]} 18... hxg6 {[%clk 0:00:18]} 19. Bb5 {[%clk
0:01:04.4]} 19... Nxd5 {[%clk 0:00:14.7]} 20. Rxd5 {[%clk 0:00:58]} 20... c6
{[%clk 0:00:15.6]} 21. Rg5 {[%clk 0:00:56.6]} 21... cxb5 {[%clk 0:00:14.2]} 22.
Rxb5 {[%clk 0:00:56.6]} 22... Rc8 {[%clk 0:00:11.4]} 23. c3 {[%clk 0:00:53.3]}
23... Rc5 {[%clk 0:00:09.1]} 24. Rxb7 {[%clk 0:00:52.7]} 24... Rf5 {[%clk
0:00:06.3]} 25. Re2 {[%clk 0:00:33.9]} 25... Rc8 {[%clk 0:00:04.8]} 26. Rd2
{[%clk 0:00:32.8]} 26... Rc6 {[%clk 0:00:03.9]} 27. f3 {[%clk 0:00:27.5]} 27...
Re5 {[%clk 0:00:02.4]} 28. Kf2 {[%clk 0:00:27.1]} 28... g5 {[%clk 0:00:01.3]}
29. Rd7 {[%clk 0:00:17.2]} 1-0